fUSD/lending_fUSD_20240118
["ID","MTS","AMOUNT","RATE_DAILY","PERIOD"]
[312034161,1705565458631,-250.0,0.00022309,2]
[312034162,1705565458640,-24506.54743189,0.00022312,2]
[312034163,1705565458649,-697342.43739159,0.00022385,3]
[312034164,1705565459027,-3947.22997376,0.00022385,3]
[312034165,1705565459047,-37693.04608442,0.00022385,3]
[312034166,1705565459483,-605.33,0.00021917,2]
[312034167,1705565459492,-500.0,0.00021917,2]
[312034168,1705565459501,-500.0,0.00021917,2]
[312034169,1705565459511,-605.33,0.00021917,2]
[312034170,1705565459520,-605.33,0.00021917,2]
[312034171,1705565459530,-605.33,0.00021917,2]
[312034172,1705565459539,-605.33,0.00021917,2]
[312034173,1705565459548,-605.33,0.00021917,2]
[312034174,1705565459558,-500.0,0.00022191,2]
[312034175,1705565459567,-500.0,0.00022191,2]
[312034176,1705565459576,-1020.95948585,0.00022281,2]
[312034177,1705565459586,-2406.79498268,0.00022385,3]
[312034178,1705565459597,-780.26540605,0.00022385,3]
[312034179,1705565460100,-263.83026301,0.00021817,2]
[312034180,1705565460110,-605.33,0.00021917,2]
[312034181,1705565460121,-605.33,0.00021917,2]
[312034182,1705565460130,-605.33,0.00021917,2]
[312034183,1705565460140,-605.33,0.00021917,2]
[312034184,1705565460149,-605.33,0.00021917,2]
[312034185,1705565460159,-605.33,0.00021917,2]
[312034186,1705565460168,-605.33,0.00021917,2]
[312034187,1705565460177,-605.33,0.00021917,2]
[312034188,1705565460186,-5650.61719323,0.00022385,3]
[312034189,1705565460198,-33890.96915153,0.00022385,3]
[312034190,1705565460213,-11808.45385105,0.00022385,3]
[312034191,1705565460225,-3735.38675812,0.00022385,3]
[312034192,1705565460236,-2181.0057048,0.00022385,3]
[312034193,1705565460247,-4292.72186228,0.00022385,3]
[312034194,1705565460263,-1267.39406076,0.00022385,3]
[312034195,1705565460787,-605.33,0.00021917,2]
[312034196,1705565460796,-69.46429573,0.00021917,2]
[312034197,1705565460807,-346.6941844,0.00021917,2]
[312034198,1705565460819,-189.17151987,0.00021917,2]
[312034199,1705565460828,-602.48374434,0.00021917,2]
[312034200,1705565460843,-2.84625566,0.00021917,2]
[312034201,1705565460852,-258.28674434,0.00021917,2]
[312034202,1705565460877,-363.20247101,0.00021916,2]
[312034203,1705565460886,-317.39325566,0.00021917,2]
[312034204,1705565460895,-500.0,0.00021917,2]
[312034205,1705565460904,-605.33,0.00021917,2]
[312034206,1705565460913,-605.33,0.00021917,2]
[312034207,1705565460922,-605.33,0.00021917,2]
[312034208,1705565460932,-605.33,0.00021917,2]
[312034209,1705565460941,-209.39380617,0.00021917,2]
[312034210,1705565460976,-395.93619383,0.00021917,2]
[312034211,1705565460985,-131.98684246,0.00021917,2]
[312034212,1705565460998,-473.34315754,0.00021917,2]
[312034213,1705565461007,-605.54,0.00021917,2]
[312034214,1705565461016,-1277.39029007,0.00022285,2]
[312034215,1705565461024,-672.78207722,0.00022385,3]
[312034216,1705565461036,-3779.9999998,0.00022385,3]
[312034217,1705565461048,-4598.5,0.00022385,3]
[312034218,1705565491178,3270.33881677,0.00019721,5]
[312034219,1705565569350,291.41637742,0.00019721,2]
[312034220,1705565571775,4017.28419592,0.00019721,2]
[312034221,1705565774544,395.64,0.00019042,2]
[312034222,1705565792023,1891.445896,0.00035273,30]
[312034223,1705565809731,250.0,0.00035273,30]
[312034224,1705565810300,250.0,0.00035273,30]
[312034225,1705565810678,250.0,0.00035273,30]
[312034226,1705565811126,250.0,0.00035273,30]
[312034227,1705565889299,305.638467,0.00035273,30]
[312034229,1705566287494,396.71,0.00018697,2]
[312034230,1705566291324,1970.502977,0.00035315,30]
[312034233,1705566445047,559.88627078,0.00019502,2]
[312034234,1705566487570,360.39878748,0.0001753,2]
[312034235,1705566491063,2297.42810168,0.00017529,2]
[312034236,1705566499009,23900.0,0.00020477,2]
[312034240,1705566605997,6202.01,0.00035315,30]
[312034252,1705566631870,-912.52924596,0.00020511,2]
[312034253,1705566631928,-131.52341598,0.00020511,2]
[312034254,1705566631937,-133.47658412,0.00020512,2]
[312034255,1705566631949,-40.27341588,0.00020512,2]
[312034256,1705566631959,-153.36,0.00020545,2]
[312034257,1705566631968,-2000.0,0.00020548,2]
[312034258,1705566631978,-165.33052111,0.00020551,2]
[312034259,1705566631987,-171.07,0.00020627,2]
[312034260,1705566631996,-800.0,0.00020651,2]
[312034261,1705566632006,-150.0,0.00020664,2]
[312034262,1705566632015,-437.25,0.00020698,2]
[312034263,1705566632024,-152.73,0.00020707,2]
[312034264,1705566632034,-159.67,0.00020747,2]
[312034265,1705566632043,-205.59,0.00020764,2]
[312034266,1705566632053,-207.0,0.0002086,2]
[312034267,1705566632062,-165.45106856,0.00020911,2]
[312034268,1705566632071,-396.71,0.00020961,2]
[312034269,1705566632081,-153.2,0.00020985,2]
[312034270,1705566632090,-200.0,0.00020985,2]
[312034271,1705566632100,-111.42137796,0.00021,2]
[312034272,1705566632116,-643.48329577,0.00021,2]
[312034273,1705566632132,-668.09532627,0.00021,2]
[312034274,1705566632142,-262.71,0.00021011,2]
[312034275,1705566632151,-165.3305211,0.00021032,2]
[312034276,1705566632160,-1964.37389044,0.00021036,2]
[312034277,1705566632171,-1222.09475608,0.00021036,2]
[312034278,1705566632181,-153.36,0.00021131,2]
[312034279,1705566632190,-356.4515154,0.00021197,2]
[312034280,1705566632202,-143.5384846,0.00021197,2]
[312034281,1705566632211,-262.71,0.00021233,2]
[312034282,1705566632220,-165.45106856,0.00021368,2]
[312034284,1705566632230,-262.71,0.00021454,2]
[312034285,1705566632241,-602.3464926,0.00021647,2]
[312034286,1705566632251,-152.74,0.00021648,2]
[312034287,1705566632260,-262.71,0.00021675,2]
[312034288,1705566632269,-437.25,0.00021677,2]
[312034289,1705566632279,-197.1648774,0.00021693,4]
[312034290,1705566632288,-153.36,0.00021718,2]
[312034292,1705566632302,-757.86049998,0.00021815,2]
[312034294,1705566632313,-199.12580897,0.00021815,2]
[312034295,1705566632322,-500.0,0.00021817,2]
[312034296,1705566632331,-35.71517447,0.00021817,2]
[312034297,1705566632358,-748.90957449,0.00021817,2]
[312034298,1705566632374,-541.24591888,0.00021817,2]
[312034299,1705566632385,-902.33883216,0.00021817,2]
[312034300,1705566632394,-172.71378818,0.00021817,2]
[312034301,1705566632404,-1638.72729863,0.00021817,2]
[312034307,1705566638284,-31807.28706032,0.00021817,2]
[312034308,1705566638295,-527.66052602,0.00021817,2]
[312034309,1705566638309,-165.45106856,0.00021825,2]
[312034310,1705566638327,-262.71,0.00021896,2]
[312034311,1705566638336,-150.67402816,0.00021896,3]
[312034312,1705566638347,-3655.90160902,0.00021899,2]
[312034313,1705566638356,-2982.0,0.000219,2]
[312034314,1705566638366,-129364.52515324,0.000219,2]
[312034315,1705566638376,-203.65293434,0.00021904,2]
[312034316,1705566638386,-273.30880852,0.00021912,2]
[312034317,1705566638397,-190.36448265,0.00021912,2]
[312034318,1705566638407,-350.62507909,0.00021912,2]
[312034319,1705566638416,-2135.97097762,0.00021912,2]
[312034320,1705566638426,-282.88521942,0.00021912,2]
[312034321,1705566638436,-417.97849528,0.00021912,2]
[312034322,1705566638446,-542.73763246,0.00021912,2]
[312034324,1705566638455,-5332.16927262,0.00021912,2]
[312034326,1705566638464,-523.80886739,0.00021912,2]
[312034327,1705566638473,-220.99406538,0.00021912,2]
[312034328,1705566638484,-267.91865166,0.00021912,2]
[312034329,1705566638494,-4503.45141954,0.00021913,2]
[312034330,1705566638503,-175.44,0.00021913,2]
[312034331,1705566638513,-1822.59366969,0.00021914,2]
[312034332,1705566638523,-505534.28686793,0.00021914,2]
[312034333,1705566638532,-246.50580772,0.00021915,2]
[312034334,1705566638542,-7811.91310678,0.00021915,2]
[312034335,1705566638552,-842.51048405,0.00021915,2]
[312034336,1705566638562,-155.0,0.00021915,2]
[312034337,1705566638571,-33446.01435889,0.00021915,2]
[312034338,1705566638581,-500.0,0.00021917,2]
[312034339,1705566638591,-500.0,0.00021917,2]
[312034340,1705566638600,-501.61403458,0.00021917,2]
[312034341,1705566638610,-501.4201709,0.00021917,2]
[312034342,1705566638619,-500.0,0.00021917,2]
[312034343,1705566638628,-617.00236934,0.00021917,2]
[312034344,1705566638638,-500.0,0.00021917,2]
[312034345,1705566638647,-500.73778823,0.00021917,2]
[312034346,1705566638656,-605.4282524,0.00021917,2]
[312034347,1705566638665,-503.00017274,0.00021917,2]
[312034348,1705566638675,-500.0,0.00021917,2]
[312034349,1705566638684,-500.0,0.00021917,2]
[312034350,1705566638694,-538.67,0.00021917,2]
[312034351,1705566638703,-500.0,0.00021917,2]
[312034352,1705566638712,-500.0,0.00021917,2]
[312034353,1705566638722,-500.0,0.00021917,2]
[312034354,1705566638731,-500.0,0.00021917,2]
[312034355,1705566638741,-500.0,0.00021917,2]
[312034356,1705566638752,-531.89163817,0.00021917,2]
[312034357,1705566638761,-500.0,0.00021917,2]
[312034358,1705566638771,-500.0,0.00021917,2]
[312034359,1705566638780,-500.0,0.00021917,2]
[312034360,1705566638790,-1000.0,0.00021917,2]
[312034361,1705566638799,-500.0,0.00021917,2]
[312034362,1705566638808,-500.0,0.00021917,2]
[312034363,1705566638818,-506.30387093,0.00021917,2]
[312034364,1705566638827,-500.0,0.00021917,2]
[312034365,1705566638837,-500.0,0.00021917,2]
[312034366,1705566638846,-247.07051065,0.00021917,2]
[312034367,1705566638856,-500.0,0.00021917,2]
[312034368,1705566638865,-500.0,0.00021917,2]
[312034369,1705566638874,-500.0,0.00021917,2]
[312034370,1705566638883,-500.0,0.00021917,2]
[312034371,1705566638892,-500.0,0.00021917,2]
[312034372,1705566638902,-500.0,0.00021917,2]
[312034373,1705566638911,-500.0,0.00021917,2]
[312034374,1705566638920,-500.0,0.00021917,2]
[312034375,1705566638930,-500.0,0.00021917,2]
[312034376,1705566638939,-500.0,0.00021917,2]
[312034377,1705566638948,-500.0,0.00021917,2]
[312034378,1705566638957,-500.0,0.00021917,2]
[312034379,1705566638966,-500.0,0.00021917,2]
[312034380,1705566638975,-500.0,0.00021917,2]
[312034381,1705566638983,-500.0,0.00021917,2]
[312034382,1705566638993,-532.14,0.00021917,2]
[312034383,1705566639002,-500.0,0.00021917,2]
[312034384,1705566639011,-500.0,0.00021917,2]
[312034385,1705566639020,-500.0,0.00021917,2]
[312034386,1705566639030,-500.0,0.00021917,2]
[312034387,1705566639039,-500.0,0.00021917,2]
[312034388,1705566639048,-500.0,0.00021917,2]
[312034389,1705566639057,-502.91319294,0.00021917,2]
[312034390,1705566639066,-509.55714894,0.00021917,2]
[312034391,1705566639075,-764.35,0.00021917,2]
[312034392,1705566639084,-500.0,0.00021917,2]
[312034393,1705566639093,-500.0,0.00021917,2]
[312034394,1705566639103,-500.0,0.00021917,2]
[312034395,1705566639111,-500.0,0.00021917,2]
[312034396,1705566639121,-506.10037928,0.00021917,2]
[312034397,1705566639130,-500.0,0.00021917,2]
[312034398,1705566639139,-500.0,0.00021917,2]
[312034399,1705566639148,-500.0,0.00021917,2]
[312034400,1705566639160,-500.0,0.00021917,2]
[312034401,1705566639170,-500.0,0.00021917,2]
[312034402,1705566639179,-505.02392726,0.00021917,2]
[312034403,1705566639188,-500.0,0.00021917,2]
[312034404,1705566639198,-502.23896251,0.00021917,2]
[312034405,1705566639207,-500.0,0.00021917,2]
[312034406,1705566639216,-500.0,0.00021917,2]
[312034407,1705566639225,-500.0,0.00021917,2]
[312034408,1705566639234,-500.0,0.00021917,2]
[312034409,1705566639243,-500.0,0.00021917,2]
[312034410,1705566639253,-500.0,0.00021917,2]
[312034411,1705566639262,-300.49476276,0.00021917,2]
[312034412,1705566639271,-342.61626047,0.00021917,2]
[312034413,1705566639280,-300.0,0.00021917,2]
[312034414,1705566639290,-500.0,0.00021917,2]
[312034415,1705566639506,-500.0,0.00021917,2]
[312034416,1705566639516,-500.0,0.00021917,2]
[312034417,1705566639526,-500.0,0.00021917,2]
[312034418,1705566639536,-500.0,0.00021917,2]
[312034419,1705566639546,-500.0,0.00021917,2]
[312034420,1705566639555,-500.0,0.00021917,2]
[312034421,1705566639564,-500.0,0.00021917,2]
[312034422,1705566639574,-500.0,0.00021917,2]
[312034423,1705566639583,-500.0,0.00021917,2]
[312034424,1705566639592,-317.54,0.00021917,2]
[312034425,1705566639602,-502.82485402,0.00021917,2]
[312034426,1705566639612,-500.0,0.00021917,2]
[312034427,1705566639622,-500.0,0.00021917,2]
[312034428,1705566639631,-533.12896231,0.00021917,2]
[312034429,1705566639641,-500.0,0.00021917,2]
[312034430,1705566639651,-500.0,0.00021917,2]
[312034431,1705566639661,-500.0,0.00021917,2]
[312034432,1705566639670,-500.0,0.00021917,2]
[312034433,1705566639680,-544.98,0.00021917,2]
[312034434,1705566639690,-500.0,0.00021917,2]
[312034435,1705566639699,-562.89,0.00021917,2]
[312034436,1705566639710,-500.0,0.00021917,2]
[312034437,1705566639719,-499.72542359,0.00021917,2]
[312034438,1705566639729,-500.0,0.00021917,2]
[312034440,1705566639738,-500.0,0.00021917,2]
[312034441,1705566639749,-500.0,0.00021917,2]
[312034442,1705566639758,-500.0,0.00021917,2]
[312034443,1705566639767,-505.19536961,0.00021917,2]
[312034444,1705566639777,-500.0,0.00021917,2]
[312034445,1705566639785,-500.0,0.00021917,2]
[312034446,1705566639795,-500.0,0.00021917,2]
[312034447,1705566639804,-500.0,0.00021917,2]
[312034448,1705566639813,-500.0,0.00021917,2]
[312034449,1705566639823,-500.0,0.00021917,2]
[312034450,1705566639832,-500.0,0.00021917,2]
[312034451,1705566639841,-500.0,0.00021917,2]
[312034452,1705566639850,-500.0,0.00021917,2]
[312034453,1705566639859,-492.88928087,0.00021917,2]
[312034454,1705566639868,-399.03938091,0.00021917,2]
[312034455,1705566639877,-500.0,0.00021917,2]
[312034456,1705566639886,-500.0,0.00021917,2]
[312034457,1705566639895,-500.0,0.00021917,2]
[312034458,1705566639904,-500.0,0.00021917,2]
[312034459,1705566639913,-500.0,0.00021917,2]
[312034460,1705566639922,-500.0,0.00021917,2]
[312034461,1705566639931,-500.0,0.00021917,2]
[312034462,1705566639940,-344.29533806,0.00021917,2]
[312034463,1705566639949,-500.0,0.00021917,2]
[312034464,1705566639958,-500.0,0.00021917,2]
[312034465,1705566639968,-500.0,0.00021917,2]
[312034466,1705566639977,-171.39707823,0.00021917,2]
[312034467,1705566639986,-500.0,0.00021917,2]
[312034468,1705566639996,-500.0,0.00021917,2]
[312034469,1705566640005,-500.0,0.00021917,2]
[312034470,1705566640014,-500.0,0.00021917,2]
[312034471,1705566640023,-500.0,0.00021917,2]
[312034472,1705566640032,-500.0,0.00021917,2]
[312034473,1705566640041,-500.0,0.00021917,2]
[312034474,1705566640050,-500.0,0.00021917,2]
[312034475,1705566640059,-500.0,0.00021917,2]
[312034476,1705566640068,-500.0,0.00021917,2]
[312034477,1705566640078,-500.0,0.00021917,2]
[312034478,1705566640087,-500.0,0.00021917,2]
[312034479,1705566640096,-500.0,0.00021917,2]
[312034480,1705566640106,-500.0,0.00021917,2]
[312034481,1705566640115,-500.0,0.00021917,2]
[312034482,1705566640124,-500.0,0.00021917,2]
[312034483,1705566640133,-500.0,0.00021917,2]
[312034484,1705566640142,-500.0,0.00021917,2]
[312034485,1705566640151,-500.0,0.00021917,2]
[312034486,1705566640160,-500.0,0.00021917,2]
[312034487,1705566640170,-500.0,0.00021917,2]
[312034488,1705566640179,-500.0,0.00021917,2]
[312034489,1705566640188,-500.0,0.00021917,2]
[312034490,1705566640197,-500.0,0.00021917,2]
[312034491,1705566640206,-499.2446387,0.00021917,2]
[312034492,1705566640216,-500.0,0.00021917,2]
[312034493,1705566640225,-500.0,0.00021917,2]
[312034494,1705566640233,-500.0,0.00021917,2]
[312034495,1705566640243,-500.0,0.00021917,2]
[312034496,1705566640253,-500.0,0.00021917,2]
[312034497,1705566640262,-500.0,0.00021917,2]
[312034498,1705566640271,-500.0,0.00021917,2]
[312034499,1705566640281,-638.50122364,0.00021917,2]
[312034501,1705566640290,-500.0,0.00021917,2]
[312034503,1705566640300,-500.0,0.00021917,2]
[312034505,1705566640310,-271.97867342,0.00021917,2]
[312034506,1705566640320,-223.04917847,0.00021917,2]
[312034507,1705566640330,-500.0,0.00021917,2]
[312034508,1705566640340,-514.8516474,0.00021917,2]
[312034509,1705566640349,-508.73427969,0.00021917,2]
[312034510,1705566640358,-503.91727106,0.00021917,2]
[312034511,1705566640368,-500.0,0.00021917,2]
[312034512,1705566640377,-500.0,0.00021917,2]
[312034513,1705566640387,-500.0,0.00021917,2]
[312034514,1705566640397,-500.0,0.00021917,2]
[312034515,1705566640407,-500.0,0.00021917,2]
[312034516,1705566640416,-500.0,0.00021917,2]
[312034517,1705566640425,-502.13970048,0.00021917,2]
[312034518,1705566640434,-500.0,0.00021917,2]
[312034519,1705566640444,-618.34,0.00021917,2]
[312034520,1705566640453,-500.0,0.00021917,2]
[312034521,1705566640462,-500.0,0.00021917,2]
[312034522,1705566640471,-507.07808165,0.00021917,2]
[312034523,1705566640480,-500.0,0.00021917,2]
[312034524,1705566640489,-500.0,0.00021917,2]
[312034525,1705566640499,-538.5423685,0.00021917,2]
[312034526,1705566640508,-500.0,0.00021917,2]
[312034527,1705566640517,-504.92628789,0.00021917,2]
[312034528,1705566640526,-500.0,0.00021917,2]
[312034529,1705566640536,-500.0,0.00021917,2]
[312034530,1705566640545,-500.0,0.00021917,2]
[312034531,1705566640554,-500.0,0.00021917,2]
[312034532,1705566640563,-500.0,0.00021917,2]
[312034533,1705566640572,-500.0,0.00021917,2]
[312034534,1705566640582,-500.0,0.00021917,2]
[312034535,1705566640591,-500.0,0.00021917,2]
[312034536,1705566640600,-500.0,0.00021917,2]
[312034537,1705566640609,-500.0,0.00021917,2]
[312034538,1705566640618,-500.0,0.00021917,2]
[312034539,1705566640627,-500.0,0.00021917,2]
[312034540,1705566640636,-500.0,0.00021917,2]
[312034541,1705566640646,-500.0,0.00021917,2]
[312034542,1705566640655,-500.0,0.00021917,2]
[312034543,1705566640664,-507.14218808,0.00021917,2]
[312034544,1705566640673,-616.10325445,0.00021917,2]
[312034545,1705566640683,-502.04114982,0.00021917,2]
[312034546,1705566640702,-500.0,0.00021917,2]
[312034547,1705566640712,-500.0,0.00021917,2]
[312034548,1705566640722,-500.0,0.00021917,2]
[312034549,1705566640731,-500.0,0.00021917,2]
[312034550,1705566640740,-500.6144942,0.00021917,2]
[312034551,1705566640751,-500.0,0.00021917,2]
[312034552,1705566640760,-500.0,0.00021917,2]
[312034553,1705566640770,-500.0,0.00021917,2]
[312034554,1705566640779,-500.0,0.00021917,2]
[312034555,1705566640790,-500.0,0.00021917,2]
[312034556,1705566640799,-500.0,0.00021917,2]
[312034557,1705566640809,-500.15916242,0.00021917,2]
[312034558,1705566640819,-181.00132557,0.00021917,2]
[312034559,1705566640829,-500.0,0.00021917,2]
[312034560,1705566640838,-509.51917262,0.00021917,2]
[312034561,1705566640848,-500.0,0.00021917,2]
[312034562,1705566640857,-500.0,0.00021917,2]
[312034563,1705566640867,-500.0,0.00021917,2]
[312034564,1705566640876,-500.0,0.00021917,2]
[312034565,1705566640885,-500.0,0.00021917,2]
[312034566,1705566640895,-500.0,0.00021917,2]
[312034567,1705566640904,-500.0,0.00021917,2]
[312034568,1705566640913,-500.0,0.00021917,2]
[312034569,1705566640923,-500.0,0.00021917,2]
[312034570,1705566640932,-500.0,0.00021917,2]
[312034571,1705566640941,-568.48,0.00021917,2]
[312034572,1705566640950,-601.42,0.00021917,2]
[312034573,1705566640960,-501.89272451,0.00021917,2]
[312034574,1705566640969,-500.0,0.00021917,2]
[312034575,1705566640979,-500.0,0.00021917,2]
[312034576,1705566640988,-500.0,0.00021917,2]
[312034577,1705566640998,-500.0,0.00021917,2]
[312034578,1705566641008,-500.0,0.00021917,2]
[312034579,1705566641018,-500.0,0.00021917,2]
[312034580,1705566641027,-626.86,0.00021917,2]
[312034581,1705566641037,-500.0,0.00021917,2]
[312034582,1705566641046,-500.0,0.00021917,2]
[312034583,1705566641061,-500.0,0.00021917,2]
[312034584,1705566641071,-505.76577724,0.00021917,2]
[312034585,1705566641080,-500.0,0.00021917,2]
[312034586,1705566641090,-500.0,0.00021917,2]
[312034587,1705566641099,-500.0,0.00021917,2]
[312034588,1705566641109,-500.0,0.00021917,2]
[312034589,1705566641118,-500.0,0.00021917,2]
[312034590,1705566641127,-500.0,0.00021917,2]
[312034591,1705566641136,-500.0,0.00021917,2]
[312034592,1705566641146,-500.0,0.00021917,2]
[312034593,1705566641155,-500.0,0.00021917,2]
[312034594,1705566641165,-500.0,0.00021917,2]
[312034595,1705566641174,-500.0,0.00021917,2]
[312034596,1705566641186,-500.0,0.00021917,2]
[312034597,1705566641195,-500.0,0.00021917,2]
[312034598,1705566641205,-500.0,0.00021917,2]
[312034599,1705566641214,-500.0,0.00021917,2]
[312034600,1705566641223,-500.0,0.00021917,2]
[312034601,1705566641233,-500.0,0.00021917,2]
[312034602,1705566641243,-500.0,0.00021917,2]
[312034603,1705566641253,-500.0,0.00021917,2]
[312034604,1705566641262,-500.0,0.00021917,2]
[312034605,1705566641295,-500.0,0.00021917,2]
[312034606,1705566641311,-500.0,0.00021917,2]
[312034607,1705566641321,-500.0,0.00021917,2]
[312034608,1705566641331,-500.0,0.00021917,2]
[312034609,1705566641340,-516.55467352,0.00021917,2]
[312034610,1705566641350,-500.0,0.00021917,2]
[312034611,1705566641359,-518.91921361,0.00021917,2]
[312034612,1705566641368,-500.0,0.00021917,2]
[312034613,1705566641378,-500.0,0.00021917,2]
[312034614,1705566641388,-517.37463304,0.00021917,2]
[312034615,1705566641398,-500.0,0.00021917,2]
[312034616,1705566641407,-500.0,0.00021917,2]
[312034617,1705566641418,-500.0,0.00021917,2]
[312034618,1705566641427,-548.56,0.00021917,2]
[312034619,1705566641436,-500.0,0.00021917,2]
[312034620,1705566641446,-500.0,0.00021917,2]
[312034621,1705566641455,-500.0,0.00021917,2]
[312034622,1705566641465,-500.0,0.00021917,2]
[312034623,1705566641474,-500.0,0.00021917,2]
[312034624,1705566641484,-500.0,0.00021917,2]
[312034625,1705566641493,-500.0,0.00021917,2]
[312034626,1705566641504,-500.0,0.00021917,2]
[312034627,1705566641514,-500.0,0.00021917,2]
[312034628,1705566641524,-500.0,0.00021917,2]
[312034629,1705566641533,-500.0,0.00021917,2]
[312034630,1705566641542,-500.0,0.00021917,2]
[312034631,1705566641552,-500.0,0.00021917,2]
[312034632,1705566641561,-500.0,0.00021917,2]
[312034633,1705566641570,-500.0,0.00021917,2]
[312034634,1705566641580,-500.0,0.00021917,2]
[312034635,1705566641589,-500.0,0.00021917,2]
[312034636,1705566641598,-500.0,0.00021917,2]
[312034637,1705566641608,-500.0,0.00021917,2]
[312034638,1705566641617,-500.0,0.00021917,2]
[312034639,1705566641627,-500.0,0.00021917,2]
[312034640,1705566641637,-500.0,0.00021917,2]
[312034641,1705566641645,-500.0,0.00021917,2]
[312034642,1705566641655,-500.0,0.00021917,2]
[312034643,1705566641665,-511.64693328,0.00021917,2]
[312034644,1705566641674,-500.0,0.00021917,2]
[312034645,1705566641683,-182.71562763,0.00021917,2]
[312034646,1705566641693,-264.86024757,0.00021917,2]
[312034647,1705566641703,-516.85729772,0.00021917,2]
[312034648,1705566641713,-500.0,0.00021917,2]
[312034649,1705566641723,-513.91,0.00021917,2]
[312034650,1705566641733,-500.0,0.00021917,2]
[312034651,1705566641742,-500.0,0.00021917,2]
[312034652,1705566641753,-500.0,0.00021917,2]
[312034653,1705566641762,-500.0,0.00021917,2]
[312034654,1705566641771,-500.0,0.00021917,2]
[312034655,1705566641781,-500.0,0.00021917,2]
[312034656,1705566641790,-566.78,0.00021917,2]
[312034657,1705566641800,-500.0,0.00021917,2]
[312034658,1705566641809,-500.0,0.00021917,2]
[312034659,1705566641818,-500.0,0.00021917,2]
[312034660,1705566641828,-632.0763679,0.00021917,2]
[312034661,1705566641837,-453.59281525,0.00021917,2]
[312034662,1705566641846,-500.0,0.00021917,2]
[312034663,1705566641856,-500.0,0.00021917,2]
[312034664,1705566641865,-500.0,0.00021917,2]
[312034665,1705566641874,-500.0,0.00021917,2]
[312034666,1705566641883,-500.0,0.00021917,2]
[312034667,1705566641892,-500.0,0.00021917,2]
[312034668,1705566641901,-500.0,0.00021917,2]
[312034669,1705566641910,-500.0,0.00021917,2]
[312034670,1705566641920,-500.0,0.00021917,2]
[312034671,1705566641929,-500.0,0.00021917,2]
[312034672,1705566641938,-500.0,0.00021917,2]
[312034673,1705566641947,-500.0,0.00021917,2]
[312034674,1705566641956,-500.0,0.00021917,2]
[312034675,1705566642195,-500.0,0.00021917,2]
[312034676,1705566642204,-500.0,0.00021917,2]
[312034677,1705566642214,-500.0,0.00021917,2]
[312034678,1705566642223,-500.0,0.00021917,2]
[312034679,1705566642233,-519.37,0.00021917,2]
[312034680,1705566642242,-500.0,0.00021917,2]
[312034681,1705566642252,-500.0,0.00021917,2]
[312034682,1705566642261,-500.0,0.00021917,2]
[312034683,1705566642270,-500.0,0.00021917,2]
[312034684,1705566642279,-500.0,0.00021917,2]
[312034685,1705566642288,-500.0,0.00021917,2]
[312034686,1705566642299,-500.0,0.00021917,2]
[312034687,1705566642310,-500.0,0.00021917,2]
[312034688,1705566642320,-500.0,0.00021917,2]
[312034689,1705566642329,-500.0,0.00021917,2]
[312034690,1705566642339,-500.0,0.00021917,2]
[312034691,1705566642348,-500.0,0.00021917,2]